[Event "SS Manhem Chess Week 2022: IM Tournament"]
[Site "Schackcentrum, Vegagatan 20, Gothenburg, Sweden"]
[Date "2022.08.06"]
[Round "1.1"]
[White "Rydstrom, Tom"]
[Black "Mitusov, Semen"]
[Result "1/2-1/2"]
[TimeControl "90 minutes for 40 moves + 30 minutes for the rest of the game + 30 seconds per move from move one."]
[WhiteTitle "FM"]
[BlackTitle "FM"]
[WhiteFideId "1714830"]
[BlackFideId "14151049"]
[WhiteElo "2304"]
[BlackElo "2415"]

1. e4 {[%clk 01:30:58]} e5 {[%clk 01:30:26]} {[%emt 00:00:35]} 2. Nf3 {[%clk
01:31:24]} {[%emt 00:00:06]} Nc6 {[%clk 01:30:51]} {[%emt 00:00:03]} 3. Bc4
{[%clk 01:31:50]} {[%emt 00:00:03]} Bc5 {[%clk 01:29:48]} {[%emt 00:01:33]} 4.
d3 {[%clk 01:32:17]} {[%emt 00:00:04]} Nf6 {[%clk 01:29:38]} {[%emt 00:00:39]}
5. Nbd2 {[%clk 01:32:37]} {[%emt 00:00:09]} d6 {[%clk 01:27:07]} {[%emt
00:03:02]} 6. c3 {[%clk 01:31:45]} {[%emt 00:01:23]} a6 {[%clk 01:25:48]}
{[%emt 00:01:49]} 7. Bb3 {[%clk 01:32:09]} {[%emt 00:00:05]} h6 {[%clk
01:20:48]} {[%emt 00:05:30]} 8. Nf1 {[%clk 01:32:31]} {[%emt 00:00:09]} O-O
{[%clk 01:19:22]} {[%emt 00:01:56]} 9. h3 {[%clk 01:31:47]} {[%emt 00:01:13]}
Be6 {[%clk 01:18:33]} {[%emt 00:01:20]} 10. g4 {[%clk 01:26:17]} {[%emt
00:06:00]} Nh7 {[%clk 01:15:07]} {[%emt 00:03:57]} 11. Ng3 {[%clk 01:21:58]}
{[%emt 00:04:48]} Bb6 {[%clk 01:11:55]} {[%emt 00:03:42]} 12. Qe2 {[%clk
01:12:04]} {[%emt 00:10:24]} d5 {[%clk 01:02:57]} {[%emt 00:09:29]} 13. Nf5
{[%clk 01:03:29]} {[%emt 00:09:05]} dxe4 {[%clk 00:59:03]} {[%emt 00:04:24]} 14.
dxe4 {[%clk 01:02:51]} {[%emt 00:01:08]} Na5 {[%clk 00:58:55]} {[%emt
00:00:38]} 15. Qc2 {[%clk 00:52:13]} {[%emt 00:11:08]} Nxb3 {[%clk 00:55:36]}
{[%emt 00:03:50]} 16. axb3 {[%clk 00:52:41]} {[%emt 00:00:02]} Re8 {[%clk
00:53:59]} {[%emt 00:02:06]} 17. Bd2 {[%clk 00:45:52]} {[%emt 00:07:19]} Qd7
{[%clk 00:51:44]} {[%emt 00:02:45]} 18. O-O-O {[%clk 00:41:08]} {[%emt
00:05:14]} Qb5 {[%clk 00:48:38]} {[%emt 00:03:36]} 19. c4 {[%clk 00:40:24]}
{[%emt 00:01:14]} Qc5 {[%clk 00:48:54]} {[%emt 00:00:13]} 20. Rhf1 {[%clk
00:26:51]} {[%emt 00:14:04]} f6 {[%clk 00:44:30]} {[%emt 00:04:54]} 21. Kb1
{[%clk 00:26:17]} {[%emt 00:01:04]} Qc6 {[%clk 00:41:51]} {[%emt 00:03:08]} 22.
Bb4 {[%clk 00:16:45]} {[%emt 00:10:02]} Bc5 {[%clk 00:39:49]} {[%emt 00:02:32]}
23. Bxc5 {[%clk 00:15:14]} {[%emt 00:02:01]} Qxc5 {[%clk 00:40:14]} {[%emt
00:00:05]} 24. h4 {[%clk 00:14:37]} {[%emt 00:01:08]} b5 {[%clk 00:31:26]}
{[%emt 00:09:17]} 25. Ne3 {[%clk 00:13:26]} {[%emt 00:01:40]} a5 {[%clk
00:24:54]} {[%emt 00:07:03]} 26. g5 {[%clk 00:12:28]} {[%emt 00:01:29]} hxg5
{[%clk 00:24:37]} {[%emt 00:00:47]} 27. hxg5 {[%clk 00:12:56]} {[%emt
00:00:01]} Nxg5 {[%clk 00:22:46]} {[%emt 00:02:21]} 28. Nxg5 {[%clk 00:13:14]}
{[%emt 00:00:12]} fxg5 {[%clk 00:23:12]} {[%emt 00:00:04]} 29. Rg1 {[%clk
00:13:16]} {[%emt 00:00:28]} a4 {[%clk 00:18:51]} {[%emt 00:04:51]} 30. b4
{[%clk 00:13:39]} {[%emt 00:00:07]} Qxb4 {[%clk 00:17:59]} {[%emt 00:01:22]} 31.
Rxg5 {[%clk 00:14:08]} {[%emt 00:00:01]} a3 {[%clk 00:14:59]} {[%emt 00:03:30]}
32. Rdg1 {[%clk 00:14:16]} {[%emt 00:00:21]} Re7 {[%clk 00:13:54]} {[%emt
00:01:35]} 33. Rxe5 {[%clk 00:11:15]} {[%emt 00:03:31]} bxc4 {[%clk 00:14:07]}
{[%emt 00:00:17]} 34. Qc3 {[%clk 00:10:35]} {[%emt 00:01:10]} Qxc3 {[%clk
00:08:19]} {[%emt 00:06:19]} 35. bxc3 {[%clk 00:11:04]} {[%emt 00:00:02]} c6
{[%clk 00:08:42]} {[%emt 00:00:07]} 36. Ka2 {[%clk 00:06:24]} {[%emt 00:05:10]}
Kf7 {[%emt 00:02:15]} 37. f4 {[%clk 00:05:55]} Rae8 {[%clk 00:03:51]} {[%emt
00:04:35]} 38. Rc5 {[%clk 00:01:34]} {[%emt 00:04:51]} Kf8 {[%clk 00:03:00]}
{[%emt 00:01:22]} 39. e5 {[%clk 00:01:29]} {[%emt 00:00:35]} Rf7 {[%clk
00:01:34]} {[%emt 00:01:57]} 40. Rf1 {[%clk 00:01:16]} {[%emt 00:00:43]} Bd5
{[%clk 00:01:18]} {[%emt 00:00:45]} 41. Nxd5 {[%clk 00:25:27]} {[%emt
00:06:19]} cxd5 {[%clk 00:31:06]} {[%emt 00:00:42]} 42. Rxd5 {[%clk 00:25:47]}
{[%emt 00:00:10]} Rf5 {[%clk 00:28:54]} {[%emt 00:02:42]} 43. Rc5 {[%clk
00:20:58]} {[%emt 00:05:18]} 1/2-1/2

[Event "SS Manhem Chess Week 2022: IM Tournament"]
[Site "Schackcentrum, Vegagatan 20, Gothenburg, Sweden"]
[Date "2022.08.06"]
[Round "1.2"]
[White "Johnson, Daniel"]
[Black "Jacobsen, Mikkel Manosri"]
[Result "1-0"]
[TimeControl "90 minutes for 40 moves + 30 minutes for the rest of the game + 30 seconds per move from move one."]
[BlackTitle "FM"]
[WhiteFideId "1721283"]
[BlackFideId "1444514"]
[WhiteElo "2207"]
[BlackElo "2320"]

1. d4 {[%clk 01:30:50]} {[%emt 00:00:10]} Nf6 {[%clk 01:30:55]} {[%emt
00:00:07]} 2. c4 {[%clk 01:30:57]} {[%emt 00:00:22]} c5 {[%clk 01:31:21]}
{[%emt 00:00:04]} 3. d5 {[%clk 01:31:05]} {[%emt 00:00:22]} e5 {[%clk
01:31:45]} {[%emt 00:00:05]} 4. Nc3 {[%clk 01:30:11]} {[%emt 00:01:25]} d6
{[%clk 01:32:08]} {[%emt 00:00:09]} 5. e4 {[%clk 01:28:53]} {[%emt 00:01:47]}
Be7 {[%clk 01:32:31]} {[%emt 00:00:06]} 6. Bd3 {[%clk 01:26:14]} {[%emt
00:03:10]} Nbd7 {[%clk 01:32:51]} {[%emt 00:00:10]} 7. Nge2 {[%clk 01:25:38]}
{[%emt 00:01:06]} h5 {[%clk 01:33:12]} {[%emt 00:00:09]} 8. f3 {[%clk
01:12:12]} {[%emt 00:13:56]} h4 {[%clk 01:32:57]} {[%emt 00:00:45]} 9. Be3
{[%clk 01:02:00]} {[%emt 00:10:42]} Nh7 {[%clk 01:33:16]} {[%emt 00:00:11]} 10.
Qd2 {[%clk 01:01:24]} {[%emt 00:01:06]} a6 {[%clk 01:29:30]} {[%emt 00:04:15]}
11. a3 {[%clk 00:55:30]} {[%emt 00:06:24]} Bg5 {[%clk 01:29:44]} {[%emt
00:00:16]} 12. b4 {[%clk 00:54:51]} {[%emt 00:01:09]} Bxe3 {[%clk 01:24:25]}
{[%emt 00:05:50]} 13. Qxe3 {[%clk 00:55:14]} {[%emt 00:00:07]} Qg5 {[%clk
01:24:02]} {[%emt 00:00:53]} 14. Qxg5 {[%clk 00:53:15]} {[%emt 00:02:28]} Nxg5
{[%clk 01:24:28]} {[%emt 00:00:03]} 15. h3 {[%clk 00:51:32]} {[%emt 00:02:14]}
Kd8 {[%clk 01:19:31]} {[%emt 00:05:27]} 16. Na4 {[%clk 00:42:32]} {[%emt
00:09:31]} Kc7 {[%clk 01:15:00]} {[%emt 00:05:00]} 17. O-O {[%clk 00:30:38]}
{[%emt 00:12:24]} Rb8 {[%clk 01:09:33]} {[%emt 00:05:57]} 18. Nec3 {[%clk
00:25:16]} {[%emt 00:05:53]} b6 {[%clk 01:06:36]} {[%emt 00:03:26]} 19. Rab1
{[%clk 00:24:32]} {[%emt 00:01:13]} Nf6 {[%clk 01:02:15]} {[%emt 00:04:52]} 20.
Rb2 {[%clk 00:07:49]} {[%emt 00:17:14]} Bd7 {[%clk 01:02:14]} {[%emt 00:00:31]}
21. Rfb1 {[%clk 00:07:04]} {[%emt 00:01:14]} Bxa4 {[%clk 01:00:46]} {[%emt
00:01:58]} 22. Nxa4 {[%clk 00:05:03]} {[%emt 00:02:31]} Nh5 {[%clk 00:57:12]}
{[%emt 00:04:05]} 23. bxc5 {[%clk 00:01:23]} {[%emt 00:04:10]} bxc5 {[%clk
00:57:39]} {[%emt 00:00:02]} 24. Rb6 {[%clk 00:00:32]} {[%emt 00:01:21]} Nf4
{[%clk 00:56:39]} {[%emt 00:01:30]} 25. Rc6+ {[%clk 00:00:32]} {[%emt
00:00:31]} Kd7 {[%clk 00:57:07]} {[%emt 00:00:02]} 26. Nb6+ {[%clk 00:00:34]}
{[%emt 00:00:28]} Ke7 {[%clk 00:57:36]} {[%emt 00:00:01]} 27. Bf1 {[%clk
00:00:32]} {[%emt 00:00:31]} Rhd8 {[%clk 00:41:19]} {[%emt 00:16:47]} 28. a4
{[%clk 00:00:38]} {[%emt 00:00:24]} Ke8 {[%clk 00:40:55]} {[%emt 00:00:53]} 29.
Rc7 {[%clk 00:00:32]} {[%emt 00:00:36]} Nh7 {[%clk 00:39:35]} {[%emt 00:01:51]}
30. a5 {[%clk 00:00:41]} {[%emt 00:00:21]} Nf6 {[%clk 00:39:19]} {[%emt
00:00:45]} 31. Ra7 {[%clk 00:00:33]} {[%emt 00:00:38]} Rd7 {[%clk 00:39:48]}
{[%emt 00:00:02]} 32. Rxa6 {[%clk 00:00:35]} {[%emt 00:00:28]} Rdb7 {[%clk
00:39:41]} {[%emt 00:00:36]} 33. Rb5 {[%clk 00:00:48]} {[%emt 00:00:17]} Kd8
{[%clk 00:37:51]} {[%emt 00:02:20]} 34. Na4 {[%clk 00:00:35]} {[%emt 00:00:43]}
Ne8 {[%clk 00:37:45]} {[%emt 00:00:37]} 35. Rc6 {[%clk 00:00:32]} {[%emt
00:00:33]} Ng6 {[%clk 00:34:32]} {[%emt 00:03:42]} 36. a6 {[%clk 00:00:43]}
{[%emt 00:00:20]} Rxb5 {[%clk 00:35:01]} {[%emt 00:00:02]} 37. cxb5 {[%clk
00:01:03]} {[%emt 00:00:09]} Ne7 {[%clk 00:35:26]} {[%emt 00:00:04]} 38. a7
{[%clk 00:00:37]} {[%emt 00:00:56]} Ra8 {[%clk 00:30:58]} {[%emt 00:04:58]} 39.
Ra6 {[%clk 00:00:37]} {[%emt 00:00:30]} Nc8 {[%clk 00:30:22]} {[%emt 00:01:07]}
40. b6 {[%clk 00:00:41]} {[%emt 00:00:25]} 1-0

[Event "SS Manhem Chess Week 2022: IM Tournament"]
[Site "Schackcentrum, Vegagatan 20, Gothenburg, Sweden"]
[Date "2022.08.06"]
[Round "1.3"]
[White "Heimisson, Hilmir Freyr"]
[Black "Olsson, William"]
[Result "0-1"]
[TimeControl "90 minutes for 40 moves + 30 minutes for the rest of the game + 30 seconds per move from move one."]
[WhiteTitle "IM"]
[BlackTitle "FM"]
[WhiteFideId "2309998"]
[BlackFideId "1741721"]
[WhiteElo "2323"]
[BlackElo "2311"]

1. e4 {[%clk 01:30:11]} {[%emt 00:00:48]} c5 {[%clk 01:30:55]} {[%emt
00:00:06]} 2. c3 {[%clk 01:30:17]} {[%emt 00:00:23]} Nf6 {[%clk 01:31:21]}
{[%emt 00:00:04]} 3. e5 {[%clk 01:30:04]} {[%emt 00:00:43]} Nd5 {[%clk
01:31:47]} {[%emt 00:00:05]} 4. Nf3 {[%clk 01:30:12]} {[%emt 00:00:22]} e6
{[%clk 01:32:02]} {[%emt 00:00:15]} 5. d4 {[%clk 01:29:34]} {[%emt 00:01:08]}
cxd4 {[%clk 01:32:23]} {[%emt 00:00:10]} 6. cxd4 {[%clk 01:29:52]} {[%emt
00:00:11]} d6 {[%clk 01:32:20]} {[%emt 00:00:34]} 7. Bc4 {[%clk 01:29:11]}
{[%emt 00:01:11]} Nc6 {[%clk 01:32:41]} {[%emt 00:00:09]} 8. O-O {[%clk
01:28:54]} {[%emt 00:00:47]} Be7 {[%clk 01:33:07]} {[%emt 00:00:04]} 9. Qe2
{[%clk 01:28:36]} {[%emt 00:00:48]} O-O {[%clk 01:33:30]} {[%emt 00:00:07]} 10.
Qe4 {[%clk 01:27:59]} {[%emt 00:01:08]} Qb6 {[%clk 01:32:06]} {[%emt 00:01:54]}
11. Bb3 {[%clk 01:15:47]} {[%emt 00:12:42]} dxe5 {[%clk 01:28:15]} {[%emt
00:04:21]} 12. dxe5 {[%clk 01:15:54]} {[%emt 00:00:22]} Qb4 {[%clk 01:28:40]}
{[%emt 00:00:06]} 13. Qe2 {[%clk 01:09:17]} {[%emt 00:07:06]} Rd8 {[%clk
01:23:45]} {[%emt 00:05:25]} 14. Bd2 {[%clk 00:59:46]} {[%emt 00:10:01]} Qg4
{[%clk 01:16:51]} {[%emt 00:07:24]} 15. Rc1 {[%clk 00:56:31]} {[%emt 00:03:45]}
Nf4 {[%clk 01:13:10]} {[%emt 00:04:12]} 16. Bxf4 {[%clk 00:49:54]} {[%emt
00:07:07]} Qxf4 {[%clk 01:13:26]} {[%emt 00:00:14]} 17. Rc4 {[%clk 00:49:31]}
{[%emt 00:00:53]} Qh6 {[%clk 01:12:36]} {[%emt 00:01:17]} 18. Bc2 {[%clk
00:43:15]} {[%emt 00:06:49]} Qc1+ {[%clk 01:04:19]} {[%emt 00:08:47]} 19. Ne1
{[%clk 00:37:19]} {[%emt 00:06:27]} Nd4 {[%clk 01:03:55]} {[%emt 00:00:54]} 20.
Qe4 {[%clk 00:24:10]} {[%emt 00:13:39]} Nxc2 {[%clk 01:03:56]} {[%emt
00:00:29]} 21. Rxc2 {[%clk 00:24:01]} {[%emt 00:00:39]} Qd1 {[%clk 01:03:17]}
{[%emt 00:01:08]} 22. h3 {[%clk 00:20:32]} {[%emt 00:04:00]} Rd4 {[%clk
00:53:00]} {[%emt 00:10:47]} 23. Qe3 {[%clk 00:19:01]} {[%emt 00:02:01]} Bg5
{[%clk 00:52:11]} {[%emt 00:01:18]} 24. Qxg5 {[%clk 00:14:24]} {[%emt
00:05:08]} Qxe1+ {[%clk 00:52:34]} {[%emt 00:00:07]} 25. Kh2 {[%clk 00:14:52]}
{[%emt 00:00:02]} h6 {[%clk 00:52:50]} {[%emt 00:00:14]} 26. Qe3 {[%clk
00:10:56]} {[%emt 00:04:25]} Qxe3 {[%clk 00:52:50]} {[%emt 00:00:31]} 27. fxe3
{[%clk 00:11:25]} Rd1 {[%clk 00:52:22]} {[%emt 00:00:58]} 28. Rd2 {[%clk
00:11:02]} {[%emt 00:00:53]} Rc1 {[%clk 00:50:19]} {[%emt 00:02:33]} 29. Rd8+
{[%clk 00:01:36]} {[%emt 00:09:56]} Kh7 {[%clk 00:50:42]} {[%emt 00:00:06]} 30.
Rf8 {[%clk 00:01:31]} {[%emt 00:00:35]} b6 {[%clk 00:46:27]} {[%emt 00:04:45]}
31. a3 {[%clk 00:00:39]} {[%emt 00:01:22]} Rf1 {[%clk 00:45:29]} {[%emt
00:01:28]} 32. Rd8 {[%clk 00:00:38]} {[%emt 00:00:32]} Bb7 {[%clk 00:45:36]}
{[%emt 00:00:22]} 33. Rd7 {[%clk 00:00:42]} {[%emt 00:00:27]} Ba6 {[%clk
00:44:56]} {[%emt 00:01:11]} 34. b4 {[%clk 00:00:43]} {[%emt 00:00:29]} Rc8
{[%clk 00:42:45]} {[%emt 00:02:40]} 35. a4 {[%clk 00:00:53]} {[%emt 00:00:21]}
Bc4 {[%clk 00:40:47]} {[%emt 00:02:27]} 36. e4 {[%clk 00:00:39]} {[%emt
00:00:44]} Re1 {[%clk 00:38:11]} {[%emt 00:03:07]} 37. b5 {[%clk 00:00:47]}
{[%emt 00:00:21]} Bf1 {[%clk 00:37:30]} {[%emt 00:01:11]} 38. Ra2 {[%clk
00:00:38]} {[%emt 00:00:40]} Rxb1 {[%clk 00:37:31]} {[%emt 00:00:29]} 39. Rf2
{[%clk 00:00:34]} {[%emt 00:00:34]} a6 {[%clk 00:36:24]} {[%emt 00:01:37]} 40.
Rfxf7 {[%clk 00:00:33]} {[%emt 00:00:31]} Rg8 {[%clk 00:36:41]} {[%emt
00:00:13]} 41. Rb7 {[%clk 00:24:47]} {[%emt 00:06:16]} axb5 {[%clk 01:06:34]}
{[%emt 00:00:36]} 42. Rxb6 {[%clk 00:23:41]} {[%emt 00:01:36]} Bd3 {[%clk
01:04:40]} {[%emt 00:02:24]} 43. a5 {[%clk 00:19:06]} {[%emt 00:05:05]} Bxe4
{[%clk 01:05:02]} {[%emt 00:00:08]} 44. g4 {[%clk 00:11:24]} {[%emt 00:08:11]}
Bd5 {[%clk 01:03:20]} {[%emt 00:02:13]} 45. a6 {[%clk 00:11:23]} {[%emt
00:00:32]} b4 {[%clk 01:02:56]} {[%emt 00:00:54]} 46. Kg3 {[%clk 00:06:45]}
{[%emt 00:05:07]} b3 {[%clk 01:02:40]} {[%emt 00:00:46]} 47. a7 {[%clk
00:06:40]} {[%emt 00:00:35]} Ra1 {[%clk 01:02:58]} {[%emt 00:00:12]} 48. Rb8
{[%clk 00:05:48]} {[%emt 00:01:22]} Rxa7 {[%clk 01:03:17]} {[%emt 00:00:11]}
0-1

[Event "SS Manhem Chess Week 2022: IM Tournament"]
[Site "Schackcentrum, Vegagatan 20, Gothenburg, Sweden"]
[Date "2022.08.06"]
[Round "1.4"]
[White "Pantzar, Milton"]
[Black "Ingebretsen, Jens E"]
[Result "1-0"]
[TimeControl "90 minutes for 40 moves + 30 minutes for the rest of the game + 30 seconds per move from move one."]
[WhiteTitle "IM"]
[BlackTitle "FM"]
[WhiteFideId "1721003"]
[BlackFideId "1522965"]
[WhiteElo "2447"]
[BlackElo "2325"]

1. Nf3 {[%clk 01:30:50]} {[%emt 00:00:10]} d5 {[%clk 01:30:43]} {[%emt
00:00:16]} 2. g3 {[%clk 01:31:00]} {[%emt 00:00:19]} c6 {[%clk 01:27:23]}
{[%emt 00:03:50]} 3. Bg2 {[%clk 01:30:52]} {[%emt 00:00:39]} Bg4 {[%clk
01:26:44]} {[%emt 00:01:09]} 4. O-O {[%clk 01:29:03]} {[%emt 00:02:19]} Nd7
{[%clk 01:26:53]} {[%emt 00:00:21]} 5. d3 {[%clk 01:26:41]} {[%emt 00:02:52]}
e5 {[%clk 01:25:26]} {[%emt 00:01:56]} 6. h3 {[%clk 01:24:18]} {[%emt
00:02:53]} Bh5 {[%clk 01:22:27]} {[%emt 00:03:29]} 7. c4 {[%clk 01:21:31]}
{[%emt 00:03:17]} Bd6 {[%clk 01:13:57]} {[%emt 00:09:00]} 8. cxd5 {[%clk
01:17:45]} {[%emt 00:04:15]} cxd5 {[%clk 01:14:11]} {[%emt 00:00:16]} 9. Nc3
{[%clk 01:16:08]} {[%emt 00:02:08]} Ne7 {[%clk 01:13:17]} {[%emt 00:01:23]} 10.
g4 {[%clk 01:03:33]} {[%emt 00:13:06]} Bg6 {[%clk 01:13:41]} {[%emt 00:00:06]}
11. Nh4 {[%clk 01:03:46]} {[%emt 00:00:17]} Nb6 {[%clk 00:55:47]} {[%emt
00:18:25]} 12. Qb3 {[%clk 00:56:02]} {[%emt 00:08:13]} Nc6 {[%clk 00:47:23]}
{[%emt 00:08:55]} 13. Nxg6 {[%clk 00:49:38]} {[%emt 00:06:54]} hxg6 {[%clk
00:45:27]} {[%emt 00:02:25]} 14. a4 {[%clk 00:49:03]} {[%emt 00:01:05]} d4
{[%clk 00:28:33]} {[%emt 00:17:24]} 15. Ne4 {[%clk 00:46:17]} {[%emt 00:03:16]}
Bb4 {[%clk 00:23:49]} {[%emt 00:05:15]} 16. a5 {[%clk 00:40:51]} {[%emt
00:05:56]} Nd5 {[%clk 00:19:57]} {[%emt 00:04:21]} 17. Ng5 {[%clk 00:28:08]}
{[%emt 00:13:13]} Nce7 {[%clk 00:20:02]} {[%emt 00:00:25]} 18. Ra4 {[%clk
00:27:42]} {[%emt 00:00:56]} O-O {[%clk 00:05:23]} {[%emt 00:15:08]} 19. Rxb4
{[%clk 00:27:20]} {[%emt 00:00:53]} Nxb4 {[%clk 00:05:46]} {[%emt 00:00:08]} 20.
Qxb4 {[%clk 00:27:44]} {[%emt 00:00:07]} Rb8 {[%clk 00:05:31]} {[%emt
00:00:45]} 21. Bd2 {[%clk 00:21:17]} {[%emt 00:06:56]} Nd5 {[%clk 00:04:47]}
{[%emt 00:01:14]} 22. Qb5 {[%clk 00:17:17]} {[%emt 00:04:31]} Ne3 {[%clk
00:04:09]} {[%emt 00:01:07]} 23. Bxe3 {[%clk 00:16:02]} {[%emt 00:01:46]} dxe3
{[%clk 00:04:32]} {[%emt 00:00:06]} 24. Qxe5 {[%clk 00:16:19]} {[%emt
00:00:13]} Re8 {[%clk 00:02:42]} {[%emt 00:02:20]} 25. Qf4 {[%clk 00:14:08]}
{[%emt 00:02:40]} Qe7 {[%clk 00:01:14]} {[%emt 00:01:58]} 26. Bd5 {[%clk
00:13:37]} {[%emt 00:01:02]} 1-0

[Event "SS Manhem Chess Week 2022: IM Tournament"]
[Site "Schackcentrum, Vegagatan 20, Gothenburg, Sweden"]
[Date "2022.08.06"]
[Round "1.5"]
[White "Ernst, Thomas"]
[Black "Kucuksari, Kaan"]
[Result "0-1"]
[TimeControl "90 minutes for 40 moves + 30 minutes for the rest of the game + 30 seconds per move from move one."]
[WhiteTitle "GM"]
[BlackTitle "FM"]
[WhiteFideId "1700065"]
[BlackFideId "6380166"]
[WhiteElo "2323"]
[BlackElo "2398"]

1. e4 {[%clk 01:30:56]} {[%emt 00:00:01]} c5 {[%clk 01:30:54]} {[%emt
00:00:07]} 2. Nf3 {[%clk 01:31:16]} {[%emt 00:00:09]} d6 {[%clk 01:31:07]}
{[%emt 00:00:18]} 3. d4 {[%clk 01:31:37]} {[%emt 00:00:08]} cxd4 {[%clk
01:31:32]} {[%emt 00:00:05]} 4. Nxd4 {[%clk 01:32:01]} {[%emt 00:00:05]} Nf6
{[%clk 01:31:50]} {[%emt 00:00:12]} 5. Nc3 {[%clk 01:32:24]} {[%emt 00:00:07]}
Nc6 {[%clk 01:32:16]} {[%emt 00:00:05]} 6. Be2 {[%clk 01:32:38]} {[%emt
00:00:15]} e5 {[%clk 01:32:30]} {[%emt 00:00:16]} 7. Nf3 {[%clk 01:32:57]}
{[%emt 00:00:11]} h6 {[%clk 01:32:53]} {[%emt 00:00:07]} 8. O-O {[%clk
01:33:06]} {[%emt 00:00:20]} Be7 {[%clk 01:32:51]} {[%emt 00:00:33]} 9. Re1
{[%clk 01:31:18]} {[%emt 00:02:18]} O-O {[%clk 01:33:13]} {[%emt 00:00:08]} 10.
h3 {[%clk 01:31:31]} {[%emt 00:00:17]} a6 {[%clk 01:33:35]} {[%emt 00:00:09]}
11. Bf1 {[%clk 01:27:25]} {[%emt 00:04:34]} Qc7 {[%clk 01:30:38]} {[%emt
00:03:28]} 12. a4 {[%clk 01:16:03]} {[%emt 00:11:52]} Be6 {[%clk 01:26:09]}
{[%emt 00:04:59]} 13. Nd5 {[%clk 01:15:12]} {[%emt 00:01:21]} Bxd5 {[%clk
01:26:02]} {[%emt 00:00:38]} 14. exd5 {[%clk 01:15:36]} {[%emt 00:00:06]} Nb4
{[%clk 01:25:53]} {[%emt 00:00:38]} 15. c4 {[%clk 01:15:47]} {[%emt 00:00:18]}
a5 {[%clk 01:24:51]} {[%emt 00:01:33]} 16. Nh2 {[%clk 01:11:08]} {[%emt
00:05:08]} Nd7 {[%clk 01:15:52]} {[%emt 00:09:29]} 17. Bd2 {[%clk 01:01:18]}
{[%emt 00:10:20]} Nc5 {[%clk 01:00:04]} {[%emt 00:16:19]} 18. Bc3 {[%clk
00:59:59]} {[%emt 00:01:47]} f5 {[%clk 00:52:35]} {[%emt 00:08:00]} 19. g4
{[%clk 00:56:44]} {[%emt 00:03:45]} Bh4 {[%clk 00:42:21]} {[%emt 00:10:44]} 20.
Nf3 {[%clk 00:54:35]} {[%emt 00:02:38]} Bxf2+ {[%clk 00:27:00]} {[%emt
00:15:52]} 21. Kxf2 {[%clk 00:54:59]} {[%emt 00:00:06]} fxg4 {[%clk 00:26:54]}
{[%emt 00:00:36]} 22. hxg4 {[%clk 00:55:22]} {[%emt 00:00:07]} e4 {[%clk
00:26:58]} {[%emt 00:00:26]} 23. Re3 {[%clk 00:55:30]} {[%emt 00:00:22]} Rxf3+
{[%clk 00:21:56]} {[%emt 00:05:32]} 24. Rxf3 {[%clk 00:55:12]} {[%emt
00:00:47]} exf3 {[%clk 00:22:04]} {[%emt 00:00:23]} 25. Kxf3 {[%clk 00:54:31]}
{[%emt 00:01:10]} Rf8+ {[%clk 00:12:51]} {[%emt 00:09:43]} 26. Kg2 {[%clk
00:54:51]} {[%emt 00:00:09]} Ne4 {[%clk 00:06:40]} {[%emt 00:06:42]} 27. Bd4
{[%clk 00:48:22]} {[%emt 00:06:57]} Qf7 {[%clk 00:05:58]} {[%emt 00:01:14]} 28.
Be2 {[%clk 00:45:48]} {[%emt 00:03:02]} Qf4 {[%clk 00:04:29]} {[%emt 00:02:01]}
29. Ra3 {[%clk 00:45:08]} {[%emt 00:01:10]} Nf2 {[%clk 00:01:07]} {[%emt
00:03:51]} 30. Be3 {[%clk 00:45:19]} {[%emt 00:00:20]} Nxd1 {[%clk 00:00:37]}
{[%emt 00:01:01]} 31. Bxf4 {[%clk 00:45:44]} {[%emt 00:00:04]} Rxf4 {[%clk
00:00:53]} {[%emt 00:00:14]} 32. Bxd1 {[%clk 00:46:07]} {[%emt 00:00:06]} Rxc4
{[%clk 00:01:05]} {[%emt 00:00:19]} 33. Rc3 {[%clk 00:44:53]} {[%emt 00:01:42]}
Rxc3 {[%clk 00:00:40]} {[%emt 00:00:57]} 34. bxc3 {[%clk 00:45:18]} {[%emt
00:00:04]} Nd3 {[%clk 00:00:47]} {[%emt 00:00:21]} 35. Kf3 {[%clk 00:45:23]}
{[%emt 00:00:26]} Kf7 {[%clk 00:01:04]} {[%emt 00:00:14]} 36. Ke3 {[%clk
00:45:21]} {[%emt 00:00:32]} Ne5 {[%clk 00:01:07]} {[%emt 00:00:28]} 37. Be2
{[%clk 00:45:30]} {[%emt 00:00:20]} Kf6 {[%clk 00:01:21]} {[%emt 00:00:17]} 38.
Kf4 {[%clk 00:45:33]} {[%emt 00:00:26]} Ng6+ {[%clk 00:01:24]} {[%emt
00:00:28]} 39. Ke4 {[%clk 00:45:51]} {[%emt 00:00:10]} Kg5 {[%clk 00:01:28]}
{[%emt 00:00:27]} 40. c4 {[%clk 00:46:08]} {[%emt 00:00:14]} b6 {[%clk
00:01:52]} {[%emt 00:00:06]} 41. Kf3 {[%clk 00:45:35]} {[%emt 00:01:02]} Ne5+
{[%clk 00:01:29]} {[%emt 00:00:53]} 42. Kg3 {[%clk 00:45:59]} {[%emt 00:00:06]}
0-1